Cogmind - Beta 9.1 @@@ ROGUE MODE // 2019.10.30 @ 19:58:30 Player: MrPainting Result: Self-destructed Performance ------------- Evolutions (1) 500 Regions Visited (3) 600 Robots Destroyed (16) 80 Value Destroyed (418) 418 Prototype IDs (0) 0 Alien Tech Used (0) 0 Bonus (0) 0 TOTAL SCORE: 1598 Bonus ------- None Cogmind --------- Core Integrity 350/400 Matter 200/300 Energy 100/100 System Corruption 0% Temperature Cool (6) Location -9/Materials Parts ------- Power (1) Propulsion (4) Aluminum Leg Aluminum Leg Utility (2) Large Storage Unit Hacking Suite Weapon (2) Minigun Minigun Inventory (10) Light Ion Engine Improved Heat Sink Large Storage Unit Signal Interpreter Hacking Suite Tractor Beam Light EM Pulse Cannon Light Assault Rifle Minigun Peak State ------------ Power (None) Propulsion Aluminum Leg Aluminum Leg Aluminum Leg Utility Large Storage Unit Hacking Suite Weapon Minigun Minigun Inventory Large Storage Unit Hacking Suite Tractor Beam Minigun Minigun [Rating: 14] Favorites ----------- Power Light Ion Engine Engine Light Ion Engine Propulsion Aluminum Leg Leg Aluminum Leg Utility Small Storage Unit Storage Small Storage Unit Hackware Hacking Suite Weapon Medium Laser Energy Gun Medium Laser Energy Cannon Light EM Pulse Cannon Ballistic Gun Minigun Build | -11 -10 -10 -9 ------- Run | Scr Mat Min Mat Slots Evolved 2 | . . . 2 Power . | . . . . Propulsion 2 | . . . 2 Utility . | . . . . Weapon . | . . . . Parts Attached 21 | 6 . 4 11 Power 2 | 1 . . 1 Engine 2 | 1 . . 1 Core . | . . . . Reactor . | . . . . Propulsion 7 | 2 . 2 3 Treads . | . . . . Leg 7 | 2 . 2 3 Wheel . | . . . . Hover . | . . . . Flight . | . . . . Utility 3 | 1 . . 2 Device . | . . . . Storage 2 | 1 . . 1 Processor . | . . . . Hackware 1 | . . . 1 Protection . | . . . . Artifact . | . . . . Weapon 9 | 2 . 2 5 Energy Gun 3 | 2 . 1 . Energy Cannon 1 | . . . 1 Ballistic Gun 5 | . . 1 4 Ballistic Cannon . | . . . . Launcher . | . . . . Special Weapon . | . . . . Impact Weapon . | . . . . Slashing Weapon . | . . . . Piercing Weapon . | . . . . Special Melee Weapon . | . . . . Unidentified Prototypes . | . . . . Parts Lost 9 | . . 5 4 Power 2 | . . 1 1 Propulsion 3 | . . . 3 Utility . | . . . . Weapon 4 | . . 4 . Highest Loss Streak 2 | . . 2 1 Average Slot Usage (%) 75 | . 85 79 62 Engine 8 | . 14 10 1 Leg 26 | . 28 28 23 Storage 13 | . 14 14 11 Hackware 2 | . . . 8 Energy Gun 13 | . 28 14 . Ballistic Gun 10 | . . 11 16 Naked Turns . | . . . . Heaviest Build 25 | 11 11 11 25 Greatest Support 30 | 20 20 20 30 Greatest Overweight (x) 2 | 2 . . 2 Average Overweight (x) . | . . . . Largest Inventory Capacity 10 | 6 6 6 10 Average Capacity 6 | 5 6 6 8 Most Carried 10 | 3 4 5 10 Average Carried 4 | . 1 4 6 Final Capacity 10 | 6 6 6 10 Final Carried 9 | . 4 4 9 Class Distribution -------------------- 100% | Mutant Dominant Class ---------------- Mutant | -10/Materials Mutant | -10/Mines Mutant | -9/Materials Resources | -11 -10 -10 -9 ----------- Run | Scr Mat Min Mat Matter Collected 527 | 128 132 61 206 Remotely . | . . . . Salvage Created 542 | . 133 170 239 Parts 26 | . 11 2 13 Haulers Intercepted . | . . . . Recyclers Shooed . | . . . . Parts Field Recycled . | . . . . Retrieved Matter . | . . . . Parts Self-Destructed . | . . . . Prevented . | . . . . Kills | -11 -10 -10 -9 ------- Run | Scr Mat Min Mat Combat Hostiles Destroyed 12 | . 2 4 6 Guns 12 | . 2 4 6 Classes Destroyed 5 | . 3 . 2 Builder 1 | . 1 . . Recycler 1 | . . . 1 Watcher 2 | . 1 . 1 Swarmer 3 | . . . 3 Grunt 9 | . 2 4 3 Best Kill Streak 5 | . 2 2 5 Combat Bots Only 3 | . 2 2 3 Max Kills in Single Turn 2 | . 1 1 2 Gunslinging 1 | . . . 1 Exploded . | . . . . Melee . | . . . . Uniques/NPCs Destroyed . | . . . . Combat | -11 -10 -10 -9 -------- Run | Scr Mat Min Mat Damage Taken 1198 | . 111 581 506 Core 190 | . 18 122 50 Absorbed by Shields . | . . . . Core Remaining (%) 72 | 100 . 44 . Volleys Fired 70 | . 8 35 27 Largest 2 | . 2 2 2 Hottest 100 | . 100 85 50 Shots Fired 120 | . 16 50 54 Gun 120 | . 16 50 54 Cannon . | . . . . Launcher . | . . . . Special . | . . . . Kinetic 89 | . . 35 54 Thermal 31 | . 16 15 . Explosive . | . . . . Electromagnetic . | . . . . Robot Hit Streak 15 | . 3 15 5 Robot Miss Streak 5 | . 3 2 5 Penetration Max . | . . . . Secondary Targets 3 | . . 1 2 Max Gunslinging Chain 1 | . . 1 1 Shots Hit Robots 74 | . 8 38 28 Core Hits 32 | . 7 15 10 Critical Hits . | . . . . Critical Kills . | . . . . Critical Parts Destroyed . | . . . . Melee Attacks . | . . . . Impact . | . . . . Slashing . | . . . . Piercing . | . . . . Sneak Attacks . | . . . . Combat Hostiles . | . . . . Follow-up Attacks . | . . . . Damage Inflicted 1070 | . 136 387 547 Guns 1070 | . 136 387 547 Cannons . | . . . . Explosions . | . . . . Melee . | . . . . Ramming . | . . . . Kinetic 753 | . . 206 547 Thermal 317 | . 136 181 . Explosive . | . . . . Electromagnetic . | . . . . Impact . | . . . . Slashing . | . . . . Piercing . | . . . . Highest Corruption . | . . . . Average Corruption . | . . . . Corruption Purged . | . . . . Overload Shots . | . . . . Overflow Damage . | . . . . Projectiles . | . . . . Explosions . | . . . . Melee . | . . . . Knockbacks . | . . . . Impact . | . . . . Kinetic . | . . . . Secondary . | . . . . Self-Inflicted Damage . | . . . . Shots . | . . . . Rammed . | . . . . Targets Rammed . | . . . . Kicked . | . . . . Crushed . | . . . . Highest Temperature 188 | . 150 188 64 Average Temperature 54 | . 47 67 32 Received Heat Transfer 609 | . 63 336 210 Siege Activations . | . . . . Robots Corrupted . | . . . . Combat Hostiles . | . . . . Parts Fried . | . . . . Impact Corruptions . | . . . . Robots Melted . | . . . . Combat Hostiles . | . . . . Parts Melted 2 | . 1 1 . Heat Transferred 888 | . 407 481 . Parts Sabotaged . | . . . . Parts Stolen . | . . . . Parts Stripped . | . . . . Power Chain Reactions . | . . . . Missiles Intercepted . | . . . . Alert | -11 -10 -10 -9 ------- Run | Scr Mat Min Mat Peak Influence 152 | . 77 90 152 Average Influence 42 | . 32 39 61 Maximum Alert Level . | . . . . Low Security (%) 100 | . . . . Level 1 . | . . . . Level 2 . | . . . . Level 3 . | . . . . Level 4 . | . . . . Level 5 . | . . . . High Security . | . . . . Max Security . | . . . . Squads Dispatched 1 | . 1 . . Investigation . | . . . . Extermination . | . . . . Reinforcement 1 | . 1 . . Assault . | . . . . Garrison . | . . . . Intercept . | . . . . Construction Impeded . | . . . . Haulers Reinforced . | . . . . Stealth | -11 -10 -10 -9 --------- Run | Scr Mat Min Mat Distress Signals 1 | . . . 1 Communications Jammed . | . . . . Distress Signals . | . . . . Times Spotted 22 | . 5 6 11 Peak Tracking Total 4 | . 2 2 4 Tactical Retreats . | . . . . Traps | -11 -10 -10 -9 ------- Run | Scr Mat Min Mat Traps Triggered . | . . . . Indirectly . | . . . . Trap Hack Attempts . | . . . . Triggered . | . . . . Disarmed . | . . . . Reprogrammed . | . . . . Reused . | . . . . Traps Extracted . | . . . . Installed . | . . . . Triggered . | . . . . Machines | -11 -10 -10 -9 ---------- Run | Scr Mat Min Mat Machines Disabled . | . . . . Max in Single Turn . | . . . . Machines Sabotaged . | . . . . Garrisons Compromised . | . . . . Overloaded Fab Kills . | . . . . Fab Network Shutdowns . | . . . . Hacking | -11 -10 -10 -9 --------- Run | Scr Mat Min Mat Machines Accessed . | . . . . Terminals . | . . . . Fabricators . | . . . . Repair Stations . | . . . . Recycling Units . | . . . . Scanalyzers . | . . . . Garrison Access . | . . . . Total Hacks . | . . . . Successful . | . . . . Failed . | . . . . Catastrophic . | . . . . Database Lockouts . | . . . . Manual . | . . . . Terminals . | . . . . Fabricators . | . . . . Repair Stations . | . . . . Recycling Units . | . . . . Scanalyzers . | . . . . Garrison Access . | . . . . Terminal Hacks . | . . . . Fabricator Hacks . | . . . . Repair Station Hacks . | . . . . Recycling Unit Hacks . | . . . . Scanalyzer . | . . . . Garrison Access Hacks . | . . . . Unauthorized Hacks . | . . . . Terminals . | . . . . Fabricators . | . . . . Repair Stations . | . . . . Recycling Units . | . . . . Scanalyzers . | . . . . Garrison Access . | . . . . Data Cores Recovered . | . . . . Used . | . . . . Hacking Detections . | . . . . Full Trace Events . | . . . . Feedback Events . | . . . . Feedback Blocked . | . . . . Robot Schematics Acquired . | . . . . Robots Built . | . . . . Matter . | . . . . Time . | . . . . Total Robot Build Rating . | . . . . Part Schematics Acquired . | . . . . Parts Built . | . . . . Matter . | . . . . Time . | . . . . Total Part Build Rating . | . . . . Parts Repaired . | . . . . Time . | . . . . Parts Recycled . | . . . . Recycled Matter . | . . . . Retrieved Matter . | . . . . Retrieved Components . | . . . . Parts Scanalyzed . | . . . . Part Schematics Acquired . | . . . . Parts Damaged . | . . . . Bothacking | -11 -10 -10 -9 ------------ Run | Scr Mat Min Mat Used RIF Installer . | . . . . Robots Hacked . | . . . . Non-combat . | . . . . Combat . | . . . . Robot Hacks Applied . | . . . . Relay Couplers Released . | . . . . Robots Rewired . | . . . . Allies Hacked . | . . . . Hacks Repelled . | . . . . Allies | -11 -10 -10 -9 -------- Run | Scr Mat Min Mat Total Allies . | . . . . Largest Group . | . . . . Highest-Rated Group . | . . . . Highest-Rated Ally . | . . . . Total Orders . | . . . . Ally Attacks . | . . . . Total Damage . | . . . . Kills . | . . . . Allies Corrupted . | . . . . Allies Melted . | . . . . Intel | -11 -10 -10 -9 ------- Run | Scr Mat Min Mat Robot Analysis Total . | . . . . Derelict Logs Recovered 1 | . . 1 . Drone Launches . | . . . . Drone Recoveries . | . . . . Exploration | -11 -10 -10 -9 ------------- Run | Scr Mat Min Mat Turns Passed 980 | 56 215 429 280 Spaces Moved 563 | 37 145 274 107 Core 16 | 16 . . . Treads . | . . . . Legs 547 | 21 145 274 107 Wheels . | . . . . Hover . | . . . . Flight . | . . . . Fastest Speed 50 | 50 120 120 120 Average Speed 121 | 111 120 120 129 Slowest Speed 180 | 150 120 120 180 Overloaded Moves . | . . . . Propulsion Burnouts . | . . . . Robots Hopped . | . . . . Cave-ins Triggered . | . . . . Exploration Rate (%) 31 | 3 30 81 11 Regions Visited 3 Branch Regions 1 Pre-discovered Areas 1 | . . 1 . Known Exits Taken . | . . . . Unknown Exits Taken 3 | 1 1 1 . Scrap Searched 2 | . . 2 . Spaces Dug . | . . . . Terrain Destroyed . | . . . . Melee . | . . . . Projectile . | . . . . AOE . | . . . . Actions | -11 -10 -10 -9 --------- Run | Scr Mat Min Mat Total 754 | 52 170 330 202 Wait 75 | 4 14 14 43 Move 560 | 36 144 273 107 Hop . | . . . . Pick Up 24 | 6 4 3 11 Fast Attach 4 | . . . 4 Attach 11 | 6 . 2 3 Detach . | . . . . Swap 6 | . . 2 4 Drop 4 | . . 1 3 Fire 70 | . 8 35 27 Melee . | . . . . Ram . | . . . . Kick . | . . . . Crush . | . . . . Escape Stasis . | . . . . Rewire . | . . . . Trap . | . . . . Miscellaneous . | . . . . Route ------- -11/Scrapyard -10/Materials -10/Mines -9/Materials History --------- Turn | Location | Event 4 | -11/Scrapyard | Discovered new exit (range 16) 57 | -11/Scrapyard | Entered Materials 237 | -10/Materials | Discovered new exit (range 16) 272 | -10/Materials | Entered Mines 305 | -10/Mines | Build established: Mutant 639 | -10/Mines | Learned location of Storage (-8) 646 | -10/Mines | Discovered new exit (range 6) 696 | -10/Mines | Core integrity fell below 50% 701 | -10/Mines | Entered Materials 701 | -9/Materials | Evolved 2 slots: Propulsion x2 981 | -9/Materials | Self-destructed Last Messages --------------- 00912_ K-01 Serf collects debris. 00913_ Acquired Aluminum Leg. 00915_ R-06 Scavenger collects Aluminum Leg. 00916_ K-01 Serf collects debris. 00917_ Lgt. Ion Engine destroyed. 00920_ K-01 Serf collects debris. 00920_ G-47 Trooper destroyed. 00922_ U-05 Engineer builds a Door. 00923_ K-01 Serf collects debris. 00925_ Acquired Aluminum Leg. 00927_ K-01 Serf collects debris. 00931_ Dropped Minigun. 00931_ Acquired Imp. Heat Sink. 00933_ K-01 Serf collects debris. 00934_ Acquired 54 matter. 00935_ Acquired 42 matter. 00936_ K-01 Serf collects debris. 00971_ Knocked back. 00977_ Aluminum Leg destroyed. 00980_ Knocked back. Map ----- +----------------------------------------------------+ | ????????# #???????????? | | ????????# #???????????? | | ????????# #???????????? | | ??????######+### ###### #???????????? | | ??????# ###+###????# #???????????? | | ??????# """ #??????????# #???????????? | | ??????# """ #??????????# #???????????? | | ??????# """ #??????????# #???????????? | | ??????# #??????????# #???????????? | | ??????# #??????????# #???????????? | | ??????# "Y" #??????????# #???????????? | | ??????# """ #??????????# #???????????? | | ??????# #??????????# #???????????? | | ??????##########??????????# #???????????? | | ???????????????????????##?# #???????????? | | ??????????????????????? #?# #???????????? | | ?????????????????????? #?# #???????????? | | ?????????????????????? #?# #???????????? | | ?????????????????????? #?#[ #????? #????? | | ????????????????????? #?# * #???? #????? | | ??????##########????? =??#=[%#### #### | | ??????? ######+##### | | ??????? """ + r | | ??????# """ #g ##### ^ | | ??????# """ #g ######+##### ###### | | ??????# /b @ ## #?? #????? | | ??????# """ Y ###### ## """ #??? #????? | | ??????# """ #????# ## """ #????#????? | | ??????# """ #????# ## """ #?????????? | | ??????# #????# ##] #?????????? | | ??????###/######????# ## #?????????? | | ??????? ??????????? ## "" "" #?????????? | | ??????/ ????????????# ?# ""S"" #?????????? | | ????? #?????????????? ?????""" #?????????? | | ????"???????????????? ?????????##?????????? | | ????????????????????? ????????????????????? | | ????????????????????? ????????????????????? | | ????????????????????? ????????????????????? | | ????????????????????? ????????????????????? | | ??????????????????????????????????????????? | | ??????????????????????????????????????????? | | ??????????????????????????????????????????? | | ??????????????????????????????????????????? | | ??????????????????????????????????????????? | | ??????????????????????????????????????????? | | ??????????????????????????????????????????? | | ??????????????????????????????????????????? | | ??????????????????????????????????????????? | | | | | +----------------------------------------------------+ Best States ------------- Heat Dissipation 28 Energy Generation 10 Energy Capacity 125 Matter Stores 300 Matter Capacity 300 Sight Range 16 Terrain Scan Density 10 Evasion (%) 40 Offensive Hacking 10 Item Schematics ----------------- None Robot Schematics ------------------ None Fabricated ------------ Nothing Alien Tech Used ----------------- None Achievements -------------- None Challenges ------------ None Game ------ Seed BiocellWeightProtection Manual? 0 Play Time 00:13:04 Cumulative 68.4 hours Start 2019.10.30 @ 19:49:08 End 2019.10.30 @ 19:58:30 Sessions 1 Manual Loads 0 Difficulty Rogue Special Mode None Game No. 107 Rogue 107 Adventurer 0 Explorer 0 Win Type - Total 0 Types 0/0/0/0/0/0/0 Lore% 27 Gallery% 40 Achievement% 29 Wizard Run 0 Options --------- ASCII 0 Keyboard 0 Movement Mouse Keybinds 0 Fullscreen 1 Font 18/SmallcapsGlow Map View 76x50 Tactical HUD 1 Map Filters NONE Filters NONE Steam 1 RUN: e1f753f9-07b8-429c-811c-a1e2684a0885